bitfinex/quotes_SOLUSD_20250611
["timestamp","ask_amount","ask_price","bid_price","bid_amount"]
[1749661564959,23.1908199,166.02,165.98,87.3]
[1749661565276,6.1638798,166.07,165.96,18.64964886]
[1749661565277,23.1908199,165.99,165.96,18.64964886]
[1749661565495,23.1908199,165.98,165.94,18.64964886]
[1749661565653,23.1908199,165.99,165.94,41.84046876]
[1749661566068,26.0,166.04,165.97,23.1908199]
[1749661566289,23.1908199,166.03,165.98,23.1908199]
[1749661566597,6.16299364,166.09,165.98,23.1908199]
[1749661566750,23.1908199,166.03,165.98,23.1908199]
[1749661566946,23.1908199,166.02,165.98,23.1908199]
[1749661567189,23.1908199,166.01,165.97,18.64964886]
[1749661567377,26.0,166.07,165.98,23.1908199]
[1749661567558,26.0,166.06,165.98,23.1908199]
[1749661567881,23.1908199,166.03,165.98,23.1908199]
[1749661568046,23.1908199,166.02,165.97,129.14046876]
[1749661568249,32.0219356,166.06,165.97,129.14046876]
[1749661568475,23.1908199,166.02,165.98,23.1908199]
[1749661568671,26.0,166.06,165.98,23.1908199]
[1749661568875,23.1908199,166.03,165.97,105.94964886]
[1749661569183,23.1908199,166.02,165.97,105.94964886]
[1749661569362,23.1908199,166.02,165.97,129.14046876]
[1749661570062,23.1908199,166.02,165.98,23.1908199]
[1749661570252,23.1908199,166.03,165.98,23.1908199]
[1749661570659,26.0,166.06,165.98,23.1908199]
[1749661570870,23.1908199,166.03,165.98,23.1908199]
[1749661571076,6.02131583,166.08,165.97,105.94964886]
[1749661571077,23.1908199,166.04,165.99,23.1908199]
[1749661571270,26.0,166.08,166.0,23.1908199]
[1749661571472,1.5613,166.1,165.99,18.64964886]
[1749661571674,1.5613,166.1,165.98,6.5055]
[1749661571675,1.5613,166.1,166.03,23.1908199]
[1749661571874,23.1908199,166.08,166.03,23.1908199]
[1749661572065,26.0,166.1,166.03,110.4908199]
[1749661572264,23.1908199,166.09,166.02,18.64964886]
[1749661572472,4.60552361,166.14,166.05,23.1908199]
[1749661572473,23.1908199,166.1,166.05,23.1908199]
[1749661572672,2.97052361,166.14,166.06,18.64964886]
[1749661572890,1.5923,166.18,166.1,23.1908199]
[1749661573071,1.5923,166.18,166.09,23.1908199]
[1749661573072,23.1908199,166.14,166.09,23.1908199]
[1749661573388,1.5923,166.18,166.07,20.23234886]
[1749661573389,23.1908199,166.12,166.08,18.64964886]
[1749661573687,23.1908199,166.14,166.09,23.1908199]
[1749661573891,23.1908199,166.15,166.1,23.1908199]
[1749661574268,23.1908199,166.14,166.1,18.64964886]
[1749661574587,23.1908199,166.14,166.1,23.1908199]
[1749661574767,23.1908199,166.15,166.1,23.1908199]
[1749661574966,23.1908199,166.14,166.1,18.64964886]
[1749661575186,36.56624414,166.18,166.1,18.64964886]
[1749661575389,23.1908199,166.12,166.07,88.8827]
[1749661575686,36.56624414,166.18,166.02,154.96265625]
[1749661575687,0.42648471,166.13,166.04,18.64964886]
[1749661575862,23.1908199,166.09,166.04,41.84046876]
[1749661576058,23.1908199,166.09,166.05,23.1908199]
[1749661576287,23.1908199,166.09,166.04,18.64964886]
[1749661576288,23.1908199,166.08,166.04,18.64964886]
[1749661576487,23.1908199,166.07,166.03,18.64964886]
[1749661576796,6.44613231,166.13,166.02,1.5176]
[1749661576797,23.1908199,166.06,166.02,1.5176]
[1749661577687,0.42648471,166.09,166.01,29.8431199]
[1749661578590,0.42648471,166.09,166.01,6.6523]
[1749661578788,23.1908199,166.04,166.0,18.64964886]
[1749661578974,23.1908199,166.04,166.0,41.84046876]
[1749661579368,6.44738178,166.09,166.0,41.84046876]
[1749661579681,23.1908199,166.05,166.0,41.84046876]
[1749661579881,23.1908199,166.04,166.0,18.64964886]
[1749661580086,23.1908199,166.02,166.0,18.64964886]
[1749661580382,26.14216157,166.08,166.0,41.84046876]
[1749661580567,26.14216157,166.08,166.02,23.1908199]
[1749661580568,26.0,166.08,166.02,23.1908199]
[1749661580893,23.1908199,166.06,166.02,23.1908199]
[1749661581195,23.1908199,166.06,166.02,18.64964886]
[1749661581391,23.1908199,166.08,166.04,18.64964886]
[1749661581689,26.0,166.11,166.04,41.84046876]
[1749661581690,23.1908199,166.09,166.04,41.84046876]
[1749661582195,6.01801649,166.17,166.08,18.64964886]
[1749661582394,10.51228386,166.18,166.09,23.1908199]
[1749661582700,23.1908199,166.13,166.09,23.1908199]
[1749661582897,4.49462532,166.18,166.1,41.84046876]
[1749661583077,23.1908199,166.15,166.1,41.84046876]
[1749661583274,23.1908199,166.13,166.09,41.84046876]
[1749661584280,0.14216157,166.15,166.05,29.2405199]
[1749661584486,0.14216157,166.15,166.06,18.64964886]
[1749661584678,23.1908199,166.1,166.06,18.64964886]
[1749661584886,23.1908199,166.08,166.06,105.94964886]
[1749661585080,26.0,166.13,166.06,105.94964886]
[1749661585404,23.1908199,166.09,166.06,105.94964886]
[1749661585580,26.0,166.13,166.06,105.94964886]
[1749661585895,23.1908199,166.11,166.06,105.94964886]
[1749661586195,26.0,166.13,166.06,41.84046876]
[1749661586497,32.01951477,166.13,166.07,18.64964886]
[1749661586793,26.0,166.13,166.07,18.64964886]
[1749661587291,23.1908199,166.11,166.07,18.64964886]
[1749661587491,23.1908199,166.11,166.03,19.07613357]
[1749661587673,23.1908199,166.11,166.07,18.64964886]
[1749661587879,32.01941278,166.13,166.06,18.64964886]
[1749661588194,23.1908199,166.1,166.06,18.64964886]
[1749661588398,23.1908199,166.09,166.04,23.1908199]
[1749661588573,23.1908199,166.08,166.05,18.64964886]
[1749661588769,23.1908199,166.09,166.05,18.64964886]
[1749661590097,0.28432314,166.12,166.05,18.64964886]
[1749661590290,0.28432314,166.12,166.05,41.84046876]
[1749661590492,0.28432314,166.12,166.05,18.64964886]
[1749661590683,23.1908199,166.09,166.05,18.64964886]
[1749661591080,0.28432314,166.12,166.05,18.64964886]
[1749661591491,23.1908199,166.1,166.05,18.64964886]
[1749661591704,23.1908199,166.09,166.05,18.64964886]
[1749661592381,23.1908199,166.1,166.05,18.64964886]
[1749661593503,0.28432314,166.12,166.05,18.64964886]
[1749661593700,26.0,166.17,166.03,18.79181043]
[1749661593918,26.0,166.14,166.07,18.64964886]
[1749661594106,23.1908199,166.1,166.07,18.64964886]
[1749661594402,23.1908199,166.11,166.07,105.94964886]
[1749661595086,0.28432314,166.14,166.07,105.94964886]
[1749661595087,23.1908199,166.1,166.07,105.94964886]
[1749661595288,0.28432314,166.14,166.07,105.94964886]
[1749661595499,23.1908199,166.11,166.07,105.94964886]
[1749661595690,0.28432314,166.14,166.07,129.14046876]
[1749661596096,0.28432314,166.14,166.07,87.3]
[1749661596097,23.1908199,166.1,166.07,87.3]
[1749661596399,6.30336069,166.14,166.06,23.1908199]
[1749661596594,0.42648471,166.14,166.06,110.4908199]
[1749661596798,0.28432314,166.14,166.07,41.84046876]
[1749661596995,23.1908199,166.11,166.07,18.64964886]
[1749661597303,0.28432314,166.15,166.07,41.84046876]
[1749661597505,4.49462532,166.18,166.09,18.64964886]
[1749661597720,23.1908199,166.16,166.1,18.64964886]
[1749661597886,23.1908199,166.13,166.09,87.3]
[1749661598388,23.1908199,166.14,166.09,110.4908199]
[1749661598581,0.42648471,166.17,166.09,110.4908199]
[1749661598802,6.44447808,166.17,166.09,87.3]
[1749661599008,6.44447808,166.17,166.09,110.4908199]
[1749661599009,23.1908199,166.13,166.09,110.4908199]
[1749661599210,23.1908199,166.14,166.09,110.4908199]
[1749661599390,0.42648471,166.17,166.1,23.1908199]
[1749661599588,30.49462532,166.18,166.12,23.1908199]
[1749661599809,23.1908199,166.16,166.11,41.84046876]
[1749661600022,23.1908199,166.14,166.11,18.64964886]
[1749661600388,23.1908199,166.12,166.07,6.4097]
[1749661600712,23.1908199,166.11,166.07,18.64964886]
[1749661600917,23.1908199,166.09,166.03,6.1]
[1749661601090,23.1908199,166.08,166.04,18.64964886]
[1749661601288,26.28432314,166.11,166.04,18.64964886]
[1749661601507,6.16118167,166.14,166.06,18.64964886]
[1749661601791,23.1908199,166.13,166.08,18.64964886]
[1749661601999,32.30225658,166.17,166.08,18.64964886]
[1749661602216,23.1908199,166.12,166.08,18.64964886]
[1749661602718,23.1908199,166.11,166.07,18.64964886]
[1749661602917,0.28432314,166.15,166.07,41.84046876]
[1749661603224,23.1908199,166.12,166.07,41.84046876]
[1749661603396,23.1908199,166.11,166.06,44.64964886]
[1749661603588,23.1908199,166.11,166.06,67.84046876]
[1749661603790,0.28432314,166.15,166.06,67.84046876]
[1749661603990,23.1908199,166.11,166.06,67.84046876]
[1749661604802,23.1908199,166.11,166.06,44.64964886]
[1749661605115,23.1908199,166.11,166.06,67.84046876]
[1749661605493,23.1908199,166.11,166.06,44.64964886]
[1749661605693,6.3030592,166.15,166.06,44.64964886]
[1749661605918,23.1908199,166.1,166.06,18.64964886]
[1749661606092,23.1908199,166.08,166.05,18.64964886]
[1749661606292,23.1908199,166.08,166.03,29.2908199]
[1749661606293,23.1908199,166.06,166.02,1.6561]
[1749661606894,7.73989971,166.11,166.02,24.8469199]
[1749661607203,23.1908199,166.06,166.02,24.8469199]
[1749661607405,1.5775,166.11,166.04,41.84046876]
[1749661607606,23.1908199,166.07,166.04,18.64964886]
[1749661607811,23.1908199,166.06,166.02,26.0]
[1749661608628,0.42648471,166.1,166.02,26.0]
[1749661608816,23.1908199,166.07,166.03,41.84046876]
[1749661609208,26.0,166.12,166.03,41.84046876]
[1749661609405,0.28432314,166.11,166.04,23.1908199]
[1749661609603,23.1908199,166.08,166.03,41.84046876]
[1749661609827,0.28432314,166.11,166.03,18.64964886]
[1749661609828,23.1908199,166.07,166.03,18.64964886]
[1749661610109,0.42648471,166.11,166.03,18.64964886]
[1749661610317,23.1908199,166.06,166.02,18.64964886]
[1749661610518,0.28432314,166.09,166.02,18.64964886]
[1749661610933,23.1908199,166.03,166.01,18.64964886]
[1749661611323,23.1908199,166.03,165.99,18.64964886]
[1749661611839,6.3052332,166.09,165.99,18.64964886]
[1749661611840,0.42648471,166.07,165.99,18.64964886]
[1749661612033,23.1908199,166.03,165.99,18.64964886]
[1749661612511,23.1908199,166.01,165.98,18.64964886]
[1749661612836,23.1908199,166.02,165.98,18.64964886]
[1749661613637,23.1908199,166.01,165.98,18.64964886]
[1749661614021,23.1908199,166.01,165.97,18.64964886]
[1749661614223,23.1908199,166.0,165.97,18.64964886]
[1749661614423,23.1908199,166.01,165.97,18.64964886]
[1749661614633,23.1908199,166.01,165.97,41.84046876]
[1749661614836,23.1908199,166.02,165.97,41.84046876]
[1749661615217,23.1908199,166.02,165.97,23.1908199]
[1749661615728,23.1908199,166.01,165.96,18.64964886]
[1749661615932,23.1908199,166.01,165.97,23.1908199]
[1749661616107,23.1908199,166.01,165.96,18.64964886]
[1749661616315,23.1908199,166.01,165.97,23.1908199]
[1749661617216,0.42648471,166.05,165.97,23.1908199]
[1749661617433,23.1908199,166.01,165.97,110.4908199]
[1749661618018,0.42648471,166.05,165.97,110.4908199]
[1749661618212,23.1908199,166.01,165.97,87.3]
[1749661620440,1.6027,166.08,165.99,23.1908199]
[1749661620441,23.1908199,166.03,165.99,23.1908199]
[1749661620623,8.0549,166.15,166.02,41.84046876]
[1749661620948,23.1908199,166.09,166.04,23.1908199]
[1749661621114,23.1908199,166.06,166.02,105.94964886]
[1749661621315,23.1908199,166.05,166.02,105.94964886]
[1749661621518,26.0,166.11,166.02,129.14046876]
[1749661621852,23.1908199,166.08,166.03,23.1908199]
[1749661622018,23.1908199,166.08,166.03,110.4908199]
[1749661622642,0.42648471,166.11,166.04,23.1908199]
[1749661622831,23.1908199,166.07,166.04,18.64964886]
[1749661623228,23.1908199,166.08,166.04,18.64964886]
[1749661623430,0.28432314,166.11,166.04,18.64964886]
[1749661623631,0.28432314,166.11,166.04,41.84046876]
[1749661623845,0.28432314,166.11,166.04,18.64964886]
[1749661624141,32.01974502,166.12,166.04,18.64964886]
[1749661624142,23.1908199,166.07,166.04,18.64964886]
[1749661624321,23.1908199,166.08,166.04,18.64964886]
[1749661624521,23.1908199,166.08,166.04,105.94964886]
[1749661624726,23.1908199,166.08,166.04,129.14046876]
[1749661625134,0.28432314,166.11,166.04,129.14046876]
[1749661625324,23.1908199,166.08,166.04,129.14046876]
[1749661625520,23.1908199,166.08,166.04,105.94964886]
[1749661626143,0.14216157,166.14,166.04,105.94964886]
[1749661626144,0.28432314,166.14,166.07,23.1908199]
[1749661626445,23.1908199,166.13,166.08,23.1908199]
[1749661626755,33.69326782,166.19,166.07,87.3]
[1749661626756,23.1908199,166.1,166.07,87.3]
[1749661626923,0.28432314,166.13,166.05,129.14046876]
[1749661627124,23.1908199,166.1,166.05,129.14046876]
[1749661627336,13.91244896,166.1,166.05,119.86209782]
[1749661629144,13.91244896,166.1,166.05,105.94964886]
[1749661629538,0.14216157,166.14,166.07,13.91244896]
[1749661629847,13.91244896,166.11,166.06,13.91244896]
[1749661630235,0.28432314,166.14,166.07,13.91244896]
[1749661630441,13.91244896,166.12,166.07,13.91244896]
[1749661630630,13.91244896,166.12,166.08,13.91244896]
[1749661630838,13.91244896,166.12,166.07,13.91244896]
[1749661631634,13.91244896,166.11,166.06,13.91244896]
[1749661632134,27.5127,166.15,166.08,18.64964886]
[1749661632333,13.91244896,166.12,166.08,32.56209782]
[1749661632746,13.91244896,166.12,166.08,18.64964886]
[1749661632941,13.91244896,166.11,166.06,13.91244896]
[1749661633143,0.28432314,166.14,166.07,18.64964886]
[1749661633352,13.91244896,166.12,166.07,32.56209782]
[1749661633754,13.91244896,166.12,166.07,119.86209782]
[1749661634056,13.91244896,166.11,166.07,105.94964886]
[1749661634244,0.28432314,166.14,166.07,105.94964886]
[1749661634561,13.91244896,166.11,166.07,105.94964886]
[1749661636258,0.28432314,166.14,166.07,105.94964886]
[1749661636466,13.91244896,166.12,166.07,119.86209782]
[1749661636760,13.91244896,166.12,166.07,105.94964886]
[1749661636956,13.91244896,166.12,166.07,119.86209782]
[1749661637660,13.91244896,166.13,166.08,13.91244896]
[1749661638169,26.0,166.15,166.11,13.91244896]
[1749661638357,39.91244896,166.15,166.11,87.3]
[1749661638551,13.91244896,166.15,166.11,87.3]
[1749661639473,13.91244896,166.15,166.11,13.91244896]
[1749661639638,13.91244896,166.15,166.1,13.91244896]
[1749661640150,13.91244896,166.14,166.08,87.3]
[1749661640349,13.91244896,166.15,166.08,87.3]
[1749661640669,13.91244896,166.12,166.08,87.3]
[1749661640855,13.91244896,166.13,166.08,101.21244896]
[1749661641367,13.91244896,166.14,166.09,13.91244896]
[1749661641573,13.91244896,166.13,166.08,101.21244896]
[1749661641766,26.0,166.15,166.09,13.91244896]
[1749661641944,26.0,166.15,166.08,87.3]
[1749661642141,13.91244896,166.14,166.09,13.91244896]
[1749661642542,32.01842241,166.16,166.09,13.91244896]
[1749661642740,26.0,166.16,166.09,13.91244896]
[1749661642968,13.91244896,166.14,166.09,13.91244896]
[1749661643171,13.91244896,166.15,166.1,13.91244896]
[1749661643370,26.0,166.16,166.11,13.91244896]
[1749661643560,26.0,166.16,166.08,87.3]
[1749661643561,0.28432314,166.15,166.08,101.21244896]
[1749661643863,13.91244896,166.11,166.08,87.3]
[1749661644066,13.91244896,166.11,166.06,102.84204896]
[1749661644238,13.91244896,166.11,166.07,13.91244896]
[1749661645450,32.44525613,166.15,166.07,13.91244896]
[1749661645758,13.91244896,166.11,166.07,13.91244896]
[1749661645963,32.44525613,166.15,166.06,88.9296]
[1749661646154,32.44525613,166.15,166.07,13.91244896]
[1749661646351,13.91244896,166.11,166.07,13.91244896]
[1749661646544,13.91244896,166.11,166.06,88.9296]
[1749661646749,13.91244896,166.11,166.07,13.91244896]
[1749661647250,13.91244896,166.11,166.06,102.84204896]
[1749661647743,13.91244896,166.11,166.06,15.54204896]
[1749661647938,13.91244896,166.11,166.07,13.91244896]
[1749661648139,32.44523519,166.15,166.07,13.91244896]
[1749661648345,32.44523519,166.15,166.06,1.6296]
[1749661648654,13.91244896,166.11,166.07,13.91244896]
[1749661648844,13.91244896,166.11,166.06,1.6296]
[1749661649039,13.91244896,166.11,166.07,13.91244896]
[1749661649258,13.91244896,166.12,166.08,13.91244896]
[1749661649468,26.42648471,166.15,166.08,13.91244896]
[1749661649669,13.91244896,166.12,166.08,13.91244896]
[1749661650149,26.42648471,166.15,166.07,13.91244896]
[1749661650473,13.91244896,166.12,166.07,13.91244896]
[1749661651052,26.42648471,166.15,166.06,1.6296]
[1749661651254,13.91244896,166.13,166.09,13.91244896]
[1749661651456,13.91244896,166.13,166.08,13.91244896]
[1749661651655,13.91244896,166.13,166.07,18.64964886]
[1749661651866,26.0,166.16,166.09,13.91244896]
[1749661652056,39.91244896,166.16,166.11,13.91244896]
[1749661652374,26.0,166.16,166.12,13.91244896]
[1749661652881,13.91244896,166.17,166.12,13.91244896]
[1749661653170,13.91244896,166.19,166.14,13.91244896]
[1749661653370,7.7678,166.23,166.15,13.91244896]
[1749661653542,13.91244896,166.21,166.17,13.91244896]
[1749661653747,4.66940723,166.23,166.17,13.91244896]
[1749661654070,26.0,166.22,166.16,13.91244896]
[1749661654257,13.91244896,166.2,166.15,13.91244896]
[1749661654452,4.66940723,166.23,166.15,13.91244896]
[1749661654651,13.91244896,166.2,166.15,13.91244896]
[1749661655453,13.91244896,166.2,166.13,1.537]
[1749661655454,0.28432314,166.22,166.13,27.537]
[1749661655644,13.91244896,166.17,166.13,26.0]
[1749661655850,13.91244896,166.17,166.13,39.91244896]
[1749661656268,13.91244896,166.19,166.14,13.91244896]
[1749661656570,26.0,166.21,166.16,13.91244896]
[1749661656881,13.91244896,166.2,166.16,13.91244896]
[1749661657174,4.66940723,166.23,166.13,26.0]
[1749661657354,3.05720723,166.23,166.18,13.91244896]
[1749661657555,13.91244896,166.23,166.18,13.91244896]
[1749661657767,26.0,166.23,166.17,13.91244896]
[1749661658070,13.91244896,166.22,166.17,13.91244896]
[1749661658272,13.91244896,166.21,166.16,13.91244896]
[1749661658572,26.0,166.24,166.13,26.0]
[1749661658573,0.14216157,166.23,166.17,13.91244896]
[1749661658774,3.07708693,166.23,166.14,18.64964886]
[1749661658952,26.0,166.24,166.14,18.64964886]
[1749661659147,39.91244896,166.23,166.14,18.64964886]
[1749661659354,39.91244896,166.23,166.18,13.91244896]
[1749661659754,13.91244896,166.22,166.17,13.91244896]
[1749661659976,13.91244896,166.21,166.14,18.64964886]
[1749661660173,26.0,166.23,166.17,13.91244896]
[1749661660353,13.91244896,166.22,166.14,105.94964886]
[1749661660556,26.0,166.23,166.17,13.91244896]
[1749661660765,13.91244896,166.23,166.18,13.91244896]
[1749661661359,29.07720249,166.24,166.14,105.94964886]
[1749661661560,42.98965145,166.24,166.19,13.91244896]
[1749661661891,13.91244896,166.24,166.19,13.91244896]
[1749661662090,13.91244896,166.32,166.21,13.91244896]
[1749661662091,26.0,166.28,166.21,13.91244896]
[1749661662397,0.28432314,166.27,166.21,13.91244896]
[1749661662560,0.28432314,166.29,166.21,13.91244896]
[1749661662762,0.28432314,166.29,166.22,13.91244896]
[1749661662981,13.91244896,166.27,166.22,13.91244896]
[1749661663156,13.91244896,166.26,166.21,13.91244896]
[1749661663553,0.28432314,166.27,166.21,13.91244896]
[1749661663788,13.91244896,166.26,166.22,13.91244896]
[1749661663960,13.91244896,166.25,166.19,87.3]
[1749661664161,13.91244896,166.25,166.21,13.91244896]
[1749661665282,7.9134,166.31,166.24,13.91244896]
[1749661665595,13.91244896,166.25,166.2,18.64964886]
[1749661665886,26.0,166.28,166.19,87.3]
[1749661665887,13.91244896,166.22,166.19,87.3]
[1749661666178,13.91244896,166.23,166.19,87.3]
[1749661666555,13.91244896,166.22,166.19,87.3]
[1749661666754,0.14216157,166.27,166.19,87.3]
[1749661666755,13.91244896,166.21,166.19,87.3]
[1749661666982,26.42648471,166.27,166.17,6.5252]
[1749661667185,26.42648471,166.27,166.17,20.43764896]
[1749661667186,13.91244896,166.21,166.17,20.43764896]
[1749661667368,13.91244896,166.21,166.17,107.73764896]
[1749661667681,26.28432314,166.26,166.17,93.8252]
[1749661667868,13.91244896,166.22,166.17,107.73764896]
[1749661668085,13.91244896,166.21,166.17,107.73764896]
[1749661668682,13.91244896,166.22,166.17,107.73764896]
[1749661669900,26.28432314,166.26,166.17,107.73764896]
[1749661670070,13.91244896,166.22,166.17,107.73764896]
[1749661670270,26.28432314,166.26,166.17,93.8252]
[1749661670497,13.91244896,166.22,166.17,107.73764896]
[1749661671186,13.91244896,166.21,166.17,93.8252]
[1749661673083,26.0,166.25,166.17,93.8252]
[1749661673283,13.91244896,166.21,166.17,93.8252]
[1749661673605,13.91244896,166.18,166.11,1.5359]
[1749661673779,13.91244896,166.14,166.11,1.5359]
[1749661674171,0.28432314,166.2,166.1,18.64964886]
[1749661674380,13.91244896,166.12,166.08,6.6231]
[1749661674593,13.91244896,166.1,166.06,15.43494896]
[1749661674877,13.91244896,166.08,166.06,1.5225]
[1749661675177,13.91244896,166.08,166.05,18.64964886]
[1749661675594,13.91244896,166.08,166.04,6.4161]
[1749661676590,13.91244896,166.07,166.03,18.64964886]
[1749661676894,0.28432314,166.11,166.03,32.56209782]
[1749661677098,13.91244896,166.08,166.03,32.56209782]
[1749661677479,0.28432314,166.11,166.03,32.56209782]
[1749661677683,13.91244896,166.08,166.03,32.56209782]
[1749661678586,13.91244896,166.09,166.04,13.91244896]
[1749661678811,13.91244896,166.09,166.05,18.64964886]
[1749661679120,13.91244896,166.1,166.06,13.91244896]
[1749661679402,13.91244896,166.12,166.07,13.91244896]
[1749661679799,13.91244896,166.11,166.07,18.64964886]
[1749661680381,13.91244896,166.11,166.07,32.56209782]
[1749661680814,13.91244896,166.11,166.07,18.64964886]
[1749661681514,13.91244896,166.1,166.06,18.64964886]
[1749661682118,13.91244896,166.11,166.06,32.56209782]
[1749661682424,13.91244896,166.12,166.07,13.91244896]
[1749661683002,1.5592,166.19,166.08,32.56209782]
[1749661683205,4.50921407,166.19,166.12,13.91244896]
[1749661683409,13.91244896,166.18,166.13,13.91244896]
[1749661683624,13.91244896,166.18,166.14,13.91244896]
[1749661683779,13.91244896,166.2,166.15,13.91244896]
[1749661683979,13.91244896,166.2,166.11,44.64964886]
[1749661684206,26.42648471,166.23,166.16,13.91244896]
[1749661684409,13.91244896,166.2,166.12,18.64964886]
[1749661684620,0.42648471,166.23,166.11,44.64964886]
[1749661684914,13.91244896,166.18,166.13,13.91244896]
[1749661685095,13.91244896,166.19,166.14,13.91244896]
[1749661685292,13.91244896,166.2,166.12,18.64964886]
[1749661685501,13.91244896,166.2,166.15,13.91244896]
[1749661685815,13.91244896,166.19,166.14,13.91244896]
[1749661687309,13.91244896,166.19,166.1,1.6456]
[1749661687310,13.91244896,166.17,166.1,1.6456]
[1749661687493,13.91244896,166.14,166.1,13.91244896]
[1749661687816,13.91244896,166.15,166.1,13.91244896]
[1749661687995,26.0,166.17,166.08,18.64964886]
[1749661688194,13.91244896,166.11,166.07,18.64964886]
[1749661688599,13.91244896,166.11,166.04,18.79181043]
[1749661688799,13.91244896,166.11,166.07,18.64964886]
[1749661689198,23.18502159,166.11,166.06,23.18502159]
[1749661689515,23.18502159,166.11,166.07,18.64964886]
[1749661689701,0.28432314,166.15,166.07,41.83467045]
[1749661690014,23.18502159,166.13,166.08,23.18502159]
[1749661690396,23.18502159,166.14,166.09,23.18502159]
[1749661690606,6.72516157,166.18,166.1,23.18502159]
[1749661690788,23.18502159,166.16,166.11,23.18502159]
[1749661690989,23.18502159,166.14,166.09,23.18502159]
[1749661691409,26.0,166.18,166.07,18.64964886]
[1749661691410,23.18502159,166.15,166.1,23.18502159]
[1749661691622,23.18502159,166.15,166.07,18.64964886]
[1749661691802,23.18502159,166.15,166.1,23.18502159]
[1749661692122,23.18502159,166.16,166.11,23.18502159]
[1749661693898,23.18502159,166.16,166.07,18.64964886]
[1749661694100,23.18502159,166.16,166.11,23.18502159]
[1749661694291,0.14216157,166.17,166.11,23.18502159]
[1749661694497,23.18502159,166.16,166.11,23.18502159]
[1749661694707,26.0,166.19,166.14,23.18502159]
[1749661694905,26.0,166.19,166.12,24.78774886]
[1749661695205,23.18502159,166.18,166.13,23.18502159]
[1749661695533,23.18502159,166.14,166.1,26.0]
[1749661695694,23.18502159,166.14,166.09,23.18502159]
[1749661695898,23.18502159,166.15,166.1,23.18502159]
[1749661696415,23.18502159,166.16,166.11,23.18502159]
[1749661696822,0.42648471,166.19,166.07,138.08914886]
[1749661697022,23.18502159,166.18,166.14,23.18502159]
[1749661697328,23.18502159,166.18,166.13,23.18502159]
[1749661697513,26.28432314,166.2,166.12,41.83467045]
[1749661697714,23.18502159,166.18,166.13,23.18502159]
[1749661698328,23.18502159,166.19,166.14,23.18502159]
[1749661699409,23.18502159,166.2,166.15,23.18502159]
[1749661700013,23.18502159,166.19,166.14,23.18502159]
[1749661700417,23.18502159,166.19,166.12,105.94964886]
[1749661700619,23.18502159,166.16,166.12,129.13467045]
[1749661701011,23.18502159,166.17,166.13,23.18502159]
[1749661701244,23.18502159,166.18,166.13,23.18502159]
[1749661701414,23.18502159,166.17,166.12,129.13467045]
[1749661702836,23.18502159,166.16,166.12,87.3]
[1749661703414,23.18502159,166.14,166.09,129.13467045]
[1749661703814,28.07458471,166.18,166.09,23.18502159]
[1749661703815,23.18502159,166.13,166.09,23.18502159]
[1749661704032,23.18502159,166.13,166.08,41.83467045]
[1749661704533,23.18502159,166.14,166.09,23.18502159]
[1749661704737,23.18502159,166.16,166.11,23.18502159]
[1749661704955,4.68526289,166.23,166.14,23.18502159]
[1749661705231,23.18502159,166.2,166.15,23.18502159]
[1749661705539,30.68526289,166.23,166.14,23.18502159]
[1749661705540,26.0,166.22,166.14,23.18502159]
[1749661705734,23.18502159,166.19,166.14,23.18502159]
[1749661706218,23.18502159,166.19,166.15,23.18502159]
[1749661706931,23.18502159,166.19,166.12,105.94964886]
[1749661707127,23.18502159,166.2,166.12,105.94964886]
[1749661708234,26.0,166.22,166.12,105.94964886]
[1749661708414,23.18502159,166.19,166.12,105.94964886]
[1749661709434,13.89671416,166.19,166.15,13.89671416]
[1749661710132,26.0,166.21,166.12,105.94964886]
[1749661710438,6.01420963,166.28,166.15,26.0]
[1749661710640,13.89671416,166.22,166.17,13.89671416]
[1749661710817,13.89671416,166.19,166.16,87.3]
[1749661711015,14.1810373,166.24,166.16,87.3]
[1749661711016,13.89671416,166.18,166.16,87.3]
[1749661711218,13.89671416,166.18,166.13,101.19671416]
[1749661711413,26.28432314,166.21,166.14,13.89671416]
[1749661711650,13.89671416,166.18,166.14,13.89671416]
[1749661712255,13.89671416,166.17,166.13,101.19671416]
[1749661712848,26.28432314,166.21,166.13,87.3]
[1749661712849,13.89671416,166.16,166.13,87.3]
[1749661713218,0.14216157,166.2,166.13,87.3]
[1749661713523,13.89671416,166.17,166.13,87.3]
[1749661713726,1.6225,166.26,166.16,32.54636302]
[1749661713912,13.89671416,166.22,166.17,13.89671416]
[1749661714312,13.89671416,166.21,166.16,32.54636302]
[1749661714718,13.89671416,166.2,166.15,13.89671416]
[1749661714917,13.89671416,166.21,166.16,13.89671416]
[1749661715236,13.89671416,166.2,166.15,18.64964886]
[1749661715429,13.89671416,166.2,166.15,32.54636302]
[1749661715629,13.89671416,166.19,166.14,13.89671416]
[1749661717924,13.89671416,166.18,166.13,13.89671416]
[1749661718126,13.89671416,166.18,166.11,44.64964886]
[1749661718430,6.44264555,166.22,166.11,58.54636302]